lending/lending_fUSD_20240206
["ID","MTS","AMOUNT","RATE_DAILY","PERIOD"]
[313356696,1707227446108,-151.17075321,0.00030594,2]
[313356698,1707227446125,-150.0,0.00030714,2]
[313356700,1707227446144,-2010.56,0.0003088,2]
[313356702,1707227446155,-1000.0,0.00031,2]
[313356704,1707227446165,-500.0,0.00031,3]
[313356706,1707227446175,-500.0,0.00031,3]
[313356708,1707227446185,-7589.96874576,0.00031082,2]
[313356710,1707227446194,-314.82,0.0003109,2]
[313356712,1707227446204,-150.0,0.00031291,2]
[313356714,1707227446216,-8510.30619875,0.0003143,4]
[313356716,1707227446226,-152.0,0.00031462,6]
[313356718,1707227446236,-1126.30347656,0.00031471,5]
[313356720,1707227446245,-155.0,0.00031507,2]
[313356722,1707227446258,-180.0,0.00031644,2]
[313356724,1707227446267,-223.73,0.00031644,2]
[313356726,1707227446278,-4009.574658,0.0003176,2]
[313356728,1707227446288,-227.30451944,0.00031799,2]
[313356730,1707227446298,-280.88518602,0.00031799,2]
[313356732,1707227446308,-334364.239163,0.000318,3]
[313356735,1707227446319,-150.0,0.00031867,2]
[313356736,1707227446328,-18302.45385352,0.00032,2]
[313356739,1707227446338,-89056.95914761,0.00032,2]
[313356741,1707227446348,-13138.69387999,0.00032,4]
[313356742,1707227446358,-314.82,0.0003218,2]
[313356744,1707227446370,-10000.0,0.00032206,2]
[313356746,1707227446379,-417.21,0.00032329,2]
[313356748,1707227446389,-152.0,0.00032355,7]
[313356751,1707227446399,-150.0,0.00032444,2]
[313356752,1707227446409,-7589.96874576,0.00032445,4]
[313356753,1707227446419,-202.72659425,0.000325,2]
[313356755,1707227446429,-500.0,0.000325,2]
[313356757,1707227446438,-214.0,0.0003252,2]
[313356758,1707227446448,-219.53033656,0.00032777,2]
[313356759,1707227446458,-232.19224111,0.00032777,2]
[313356760,1707227446469,-150.0,0.000328,21]
[313356761,1707227446491,-409.6,0.0003285,2]
[313356762,1707227446504,-430.52,0.0003285,2]
[313356763,1707227446519,-10147.34526616,0.0003285,2]
[313356764,1707227446562,-313680.56503736,0.00032874,2]
[313356765,1707227446572,-227.30451944,0.00032876,2]
[313356766,1707227446583,-280.88518602,0.00032876,2]
[313356767,1707227446594,-227.30451944,0.00032876,2]
[313356768,1707227446604,-280.88518602,0.00032876,2]
[313356769,1707227446615,-55463.23,0.00032877,2]
[313356770,1707227446625,-1838454.06,0.00032877,2]
[313356771,1707227446635,-37225.65,0.00032877,2]
[313356772,1707227446645,-2796.0,0.00032877,10]
[313356773,1707227446655,-1971.16370135,0.00032877,2]
[313356774,1707227446665,-155.0,0.00032877,4]
[313356775,1707227446675,-5859.40530738,0.00032877,4]
[313356776,1707227446684,-155.0,0.00032877,2]
[313356778,1707227446694,-375.0,0.000329,2]
[313356779,1707227446703,-527.83751462,0.000329,2]
[313356780,1707227446713,-910.24,0.00033,2]
[313356781,1707227446723,-1486.40845864,0.00033,5]
[313356782,1707227446732,-9936.03223873,0.00033,2]
[313356783,1707227446742,-1000.0,0.00033,3]
[313356784,1707227446753,-550.0,0.00033,3]
[313356785,1707227446763,-550.0,0.00033,3]
[313356786,1707227446854,-203.0,0.00033,2]
[313356787,1707227446866,-150.0,0.00033021,2]
[313356788,1707227446877,-540.47,0.00033038,2]
[313356789,1707227446887,-11034.27,0.00033038,2]
[313356790,1707227446898,-1000.0,0.00033151,120]
[313356791,1707227446908,-209.45270245,0.00033151,4]
[313356792,1707227446917,-152.0,0.00033248,8]
[313356793,1707227446928,-314.82,0.0003327,2]
[313356794,1707227446938,-150.0,0.000333,22]
[313356795,1707227446947,-394.92991147,0.000335,2]
[313356796,1707227446957,-150.0,0.00033598,2]
[313356797,1707227446967,-1126.30347656,0.00033614,6]
[313356798,1707227446977,-150.0,0.000338,22]
[313356799,1707227446987,-7589.96874576,0.00033809,6]
[313356800,1707227446998,-154.25512628,0.000339,2]
[313356801,1707227447010,-154.25512624,0.000339,2]
[313356802,1707227447020,-154.25512624,0.000339,2]
[313356803,1707227447031,-764.78857376,0.00034,4]
[313356804,1707227447042,-274.52525754,0.00034,4]
[313356805,1707227447053,-152.0,0.00034141,9]
[313356806,1707227447066,-303.05111119,0.0003415,23]
[313356807,1707227447087,-150.0,0.00034175,2]
[313356808,1707227447098,-155.0,0.00034247,2]
[313356809,1707227447107,-151.17075321,0.0003426,2]
[313356810,1707227447117,-267.561646,0.000343,23]
[313356811,1707227447126,-481.477434,0.0003436,2]
[313356812,1707227447137,-727.244542,0.0003452,2]
[313356813,1707227447146,-150.0,0.00034548,10]
[313356814,1707227447156,-150.0,0.00034751,2]
[313356815,1707227447165,-1090.866813,0.00034794,2]
[313356816,1707227447175,-215.81220438,0.000348,2]
[313356817,1707227447184,-9000.73304889,0.000349,4]
[313356818,1707227447194,-14878.91488989,0.000349,2]
[313356819,1707227447203,-2354.05121129,0.000349,2]
[313356820,1707227447214,-2354.05121116,0.000349,2]
[313356821,1707227447224,-2354.05121116,0.000349,2]
[313356822,1707227447233,-2354.05121116,0.000349,2]
[313356823,1707227447244,-2354.05121116,0.000349,2]
[313356824,1707227447254,-2354.05121116,0.000349,2]
[313356825,1707227447265,-2354.05121116,0.000349,2]
[313356826,1707227447276,-2354.05121116,0.000349,2]
[313356827,1707227447286,-1454.489084,0.00034931,2]
[313356828,1707227447295,-359.27275681,0.00034935,2]
[313356829,1707227447305,-1743.48489861,0.0003499,2]
[313356830,1707227447316,-50000.0,0.00035,5]
[313356831,1707227447327,-186.67057853,0.00035,4]
[313356832,1707227447336,-447.21729424,0.00035,4]
[313356833,1707227447346,-155.0,0.00035,4]
[313356834,1707227447357,-450.20507495,0.00035,4]
[313356835,1707227447367,-155.0,0.00035,2]
[313356836,1707227447378,-155.0,0.00035,2]
[313356837,1707227447388,-1510.0194498,0.00035,2]
[313356838,1707227447397,-8375.43064048,0.00035,7]
[313356839,1707227447407,-228.17207919,0.00035,7]
[313356840,1707227447417,-668.35486289,0.00035,2]
[313356841,1707227447426,-1111.40069282,0.00035,14]
[313356842,1707227447436,-1000.0,0.00035,5]
[313356843,1707227447445,-730.20831512,0.00035,2]
[313356844,1707227447455,-74523.97413283,0.00035,2]
[313356845,1707227447466,-74523.97413283,0.00035,2]
[313356846,1707227447476,-431.74911249,0.00035,2]
[313356847,1707227447485,-600.0,0.00035,3]
[313356848,1707227447496,-450.0,0.00035,3]
[313356849,1707227447507,-600.0,0.00035,3]
[313356850,1707227447516,-19234.92724886,0.00035,2]
[313356851,1707227447526,-152.0,0.00035033,10]
[313356852,1707227447536,-227.30451944,0.00035067,2]
[313356853,1707227447545,-280.88518602,0.00035067,2]
[313356854,1707227447555,-1818.111355,0.00035068,2]
[313356855,1707227447565,-7589.96874576,0.00035173,7]
[313356856,1707227447576,-208.0,0.000352,21]
[313356857,1707227447586,-150.0,0.00035328,2]
[313356858,1707227447596,-154.25512624,0.00035329,2]
[313356859,1707227447607,-2545.355897,0.00035342,2]
[313356860,1707227447617,-2354.05121116,0.00035532,2]
[313356861,1707227447627,-10000.0,0.00035616,2]
[313356862,1707227447637,-19648.25,0.00035616,2]
[313356863,1707227447647,-155.0,0.00035617,2]
[313356864,1707227447657,-224.23863716,0.000357,2]
[313356865,1707227447667,-1126.30347656,0.00035756,7]
[313356866,1707227447676,-150.0,0.00035905,2]
[313356867,1707227447686,-302.34150577,0.0003591,5]
[313356868,1707227447695,-152.0,0.00035926,11]
[313356869,1707227447706,-162.20200329,0.00035926,5]
[313356870,1707227447715,-152.0,0.00035926,5]
[313356871,1707227447725,-50000.0,0.00036,6]
[313356872,1707227447735,-299.07884601,0.00036,4]
[313356873,1707227447746,-6180.95146449,0.00036,2]
[313356874,1707227447760,-123185.51376273,0.00036,30]
[313356875,1707227447774,-299.99999901,0.00036,37]
[313356876,1707227447785,-1024.0,0.00036,6]
[313356877,1707227447795,-217.27,0.00036,7]
[313356878,1707227447806,-157.92782035,0.000361,4]
[313356879,1707227447815,-160.64,0.00036438,2]
[313356880,1707227447824,-150.0,0.00036482,2]
[313356881,1707227447834,-7589.96874576,0.00036536,9]
[313356882,1707227447845,-10000.0,0.00036934,2]
[313356883,1707227447858,-155.0,0.00036987,2]
[313356884,1707227447868,-50000.0,0.00037,7]
[313356885,1707227447877,-750.0,0.00037,2]
[313356886,1707227447888,-252.39325372,0.00037,4]
[313356887,1707227447899,-1000.0,0.00037,7]
[313356888,1707227447908,-650.0,0.00037,3]
[313356889,1707227447918,-650.0,0.00037,3]
[313356890,1707227447930,-150.0,0.00037059,2]
[313356891,1707227447939,-2354.05121116,0.00037111,2]
[313356892,1707227447950,-150.1,0.00037112,2]
[313356893,1707227447960,-1000.0,0.000373,2]
[313356894,1707227447970,-150.0,0.00037635,2]
[313356895,1707227447980,-50020.4952861,0.00037699,2]
[313356896,1707227447991,-153.92,0.000377,3]
[313356897,1707227448000,-153.92,0.000377,3]
[313356898,1707227448012,-475.0,0.00037777,120]
[313356899,1707227448021,-60662.5687069,0.0003788,2]
[313356900,1707227448032,-1126.30347656,0.00037899,8]
[313356901,1707227448041,-227.30451944,0.00037899,2]
[313356902,1707227448050,-280.88518602,0.00037899,2]
[313356903,1707227448060,-4504.13008274,0.000379,7]
[313356904,1707227448069,-150.1,0.000379,4]
[313356905,1707227448080,-7589.96874576,0.000379,11]
[313356906,1707227448090,-2010.56,0.000379,2]
[313356907,1707227448099,-663201.515225,0.000379,3]
[313356908,1707227448110,-529.62,0.0003799,10]
[313356909,1707227448120,-50000.0,0.00038,8]
[313356910,1707227448130,-151.65764901,0.00038,2]
[313356911,1707227448140,-2750.18870953,0.00038,3]
[313356912,1707227448152,-369561.46158877,0.00038,2]
[313356913,1707227448162,-320258.38646303,0.00038,2]
[313356914,1707227448172,-150.0,0.00038,3]
[313356915,1707227448182,-2400.0,0.00038,39]
[313356916,1707227448192,-150.0,0.00038212,2]
[313356917,1707227448202,-10904.73,0.00038219,2]
[313356918,1707227448211,-10000.0,0.00038252,2]
[313356919,1707227448221,-150.0,0.00038356,2]
[313356920,1707227448232,-300.0,0.00038356,7]
[313356921,1707227448242,-450.0,0.00038356,12]
[313356922,1707227448252,-308.92419806,0.00038356,17]
[313356923,1707227448262,-914.74,0.00038356,5]
[313356924,1707227448272,-150.0,0.00038356,2]
[313356925,1707227448283,-155.0,0.00038357,2]
[313356926,1707227448294,-151.17075321,0.00038366,2]
[313356927,1707227448303,-2354.05121116,0.00038689,2]
[313356928,1707227448314,-1184.12856373,0.00038765,2]
[313356929,1707227448323,-2010.56,0.0003878,2]
[313356930,1707227448334,-150.0,0.00038789,2]
[313356931,1707227448344,-1420.54394981,0.000388,4]
[313356932,1707227448354,-31359.63585628,0.0003888,2]
[313356933,1707227448363,-31359.63585628,0.0003888,2]
[313356934,1707227448372,-31359.63585628,0.0003888,2]
[313356935,1707227448382,-31359.63585628,0.0003888,2]
[313356936,1707227448390,-166.76584409,0.000389,9]
[313356937,1707227448399,-282.99585299,0.0003898,2]
[313356938,1707227448409,-5000.0,0.00038986,2]
[313356939,1707227448417,-50000.0,0.00039,9]
[313356940,1707227448426,-1433.61374358,0.00039,2]
[313356941,1707227448435,-980.14314855,0.00039,4]
[313356942,1707227448521,-257.79137206,0.00039,2]
[313356943,1707227448530,-1000.0,0.00039,60]
[313356944,1707227448539,-3000.0,0.00039,24]
[313356945,1707227448548,-700.0,0.00039,3]
[313356946,1707227448557,-205.97,0.00039,7]
[313356947,1707227448566,-700.0,0.00039,3]
[313356948,1707227448576,-3416.752544,0.0003901,24]
[313356949,1707227448585,-1000.0,0.0003926,2]
[313356950,1707227448595,-1000.0,0.000393,15]
[313356951,1707227448604,-150.0,0.00039366,2]
[313356952,1707227448613,-150.0,0.00039366,2]
[313356953,1707227448622,-154.25512624,0.00039471,4]
[313356954,1707227448631,-3252.5673337,0.000395,2]
[313356955,1707227448641,-10000.0,0.0003957,2]
[313356956,1707227448650,-2010.56,0.0003966,2]
[313356957,1707227448659,-914.74,0.00039726,5]
[313356958,1707227448668,-153.83,0.00039726,2]
[313356959,1707227448677,-150.0,0.00039726,2]
[313356960,1707227448687,-150.0,0.00039726,2]
[313356961,1707227448696,-150.0,0.00039726,2]
[313356962,1707227448705,-150.0,0.00039726,2]
[313356963,1707227448714,-150.0,0.00039726,2]
[313356964,1707227448723,-151.49,0.00039726,2]
[313356965,1707227448732,-150.0,0.00039726,2]
[313356966,1707227448741,-150.0,0.00039726,2]
[313356967,1707227448750,-150.0,0.00039726,2]
[313356968,1707227448761,-150.0,0.00039726,2]
[313356969,1707227448770,-150.0,0.00039726,2]
[313356970,1707227448779,-150.0,0.00039726,2]
[313356971,1707227448789,-150.0,0.00039726,2]
[313356972,1707227448798,-150.0,0.00039726,2]
[313356973,1707227448807,-150.0,0.00039726,2]
[313356974,1707227448816,-150.0,0.00039726,2]
[313356975,1707227448826,-150.0,0.00039726,2]
[313356976,1707227448835,-150.0,0.00039726,2]
[313356977,1707227448845,-155.0,0.00039727,2]
[313356978,1707227448854,-227.30451944,0.00039879,2]
[313356979,1707227448865,-280.88518602,0.00039879,2]
[313356980,1707227448874,-562031.8558098,0.0003988,2]
[313356981,1707227448885,-169757.90091693,0.0003988,2]
[313356982,1707227448894,-730.20831512,0.0003988,2]
[313356983,1707227448903,-431.74911249,0.0003988,2]
[313356984,1707227448914,-150.0,0.00039942,2]
[313356985,1707227448924,-50000.0,0.0004,20]
[313356986,1707227448933,-7877.60387408,0.0004,4]
[313356987,1707227448943,-62369.33060369,0.0004,2]
[313356988,1707227448954,-191.25630105,0.0004,2]
[313356989,1707227448966,-1088.83409707,0.0004,4]
[313356990,1707227448977,-155.0,0.0004,2]
[313356991,1707227448988,-3430.78962876,0.0004,7]
[313356992,1707227448998,-180.78854923,0.0004,2]
[313356993,1707227449008,-1008.11097031,0.0004,2]
[313356994,1707227449018,-54575.98658056,0.0004,4]
[313356995,1707227449028,-1923.0,0.0004,2]
[313356996,1707227449038,-155.27860276,0.0004,120]
[313356997,1707227449049,-1018.0,0.0004,9]
[313356998,1707227449060,-4391.41730188,0.0004,4]
[313356999,1707227449069,-2280.13001344,0.0004,4]
[313357000,1707227449079,-400.00050885,0.0004,120]
[313357001,1707227449090,-3200.0,0.0004,4]
[313357002,1707227449101,-1087.89722522,0.0004,10]
[313357003,1707227449110,-1244.08975751,0.0004,30]
[313357004,1707227449120,-22127.65154771,0.0004,4]
[313357005,1707227449129,-1000.0,0.0004,120]
[313357006,1707227449139,-12345.82813726,0.0004,5]
[313357007,1707227449149,-100010.43295939,0.0004,2]
[313357008,1707227449158,-5731.21164237,0.0004,10]
[313357009,1707227449168,-511.6400132,0.0004,2]
[313357010,1707227449178,-255.0,0.0004,12]
[313357011,1707227449187,-157.28199853,0.0004,3]
[313357012,1707227449198,-255.0,0.0004,12]
[313357013,1707227449208,-1000.0,0.0004,2]
[313357014,1707227449217,-255.0,0.0004,12]
[313357015,1707227449229,-255.0,0.0004,12]
[313357016,1707227449239,-255.0,0.0004,12]
[313357017,1707227449249,-300.0,0.0004,2]
[313357018,1707227449260,-255.0,0.0004,12]
[313357019,1707227449270,-255.0,0.0004,12]
[313357020,1707227449280,-2354.05121116,0.00040268,5]
[313357021,1707227449290,-150.0,0.00040375,2]
[313357022,1707227449300,-38452.13894404,0.000405,2]
[313357023,1707227449310,-150.0,0.00040519,2]
[313357024,1707227449322,-2010.56,0.0004054,2]
[313357025,1707227449331,-227.30451944,0.00040597,3]
[313357026,1707227449342,-280.88518602,0.00040597,3]
[313357027,1707227449351,-29434.44852424,0.00040598,16]
[313357028,1707227449360,-23207.34336108,0.00040598,16]
[313357029,1707227449369,-4757.0,0.000406,7]
[313357030,1707227449378,-15232.11934823,0.00040666,16]
[313357031,1707227449387,-1000.0,0.00040733,2]
[313357032,1707227449396,-10000.0,0.0004075,4]
[313357033,1707227449405,-1000.0,0.000408,4]
[313357034,1707227449414,-19995.24507682,0.0004088,15]
[313357035,1707227449424,-10000.0,0.00040888,2]
[313357036,1707227449434,-27849.20571364,0.00040954,16]
[313357037,1707227449443,-50000.0,0.00041,21]
[313357038,1707227449453,-800.0,0.00041,2]
[313357039,1707227449464,-960.39447797,0.00041,2]
[313357040,1707227449474,-4822.2937137,0.00041,21]
[313357041,1707227449483,-1000.0,0.00041,120]
[313357042,1707227449494,-473.821731,0.00041,2]
[313357043,1707227449505,-750.0,0.00041,3]
[313357044,1707227449517,-750.0,0.00041,3]
[313357045,1707227449527,-914.74,0.00041095,5]
[313357046,1707227449538,-565.23567359,0.00041096,4]
[313357047,1707227449548,-151.0,0.00041096,7]
[313357048,1707227449559,-151.0,0.00041096,7]
[313357049,1707227449569,-151.0,0.00041096,7]
[313357050,1707227449580,-151.0,0.00041096,7]
[313357051,1707227449591,-151.0,0.00041096,7]
[313357052,1707227449602,-151.0,0.00041096,7]
[313357053,1707227449613,-151.0,0.00041096,7]
[313357054,1707227449624,-151.0,0.00041096,7]
[313357055,1707227449634,-151.0,0.00041096,7]
[313357056,1707227449643,-151.0,0.00041096,7]
[313357057,1707227449654,-151.0,0.00041096,7]
[313357058,1707227449663,-290.268281,0.00041096,14]
[313357059,1707227449673,-290.268281,0.00041096,14]
[313357060,1707227449683,-290.268281,0.00041096,14]
[313357061,1707227449693,-290.268281,0.00041096,14]
[313357062,1707227449703,-290.268281,0.00041096,14]
[313357063,1707227449713,-290.268281,0.00041096,14]
[313357064,1707227449723,-290.268281,0.00041096,14]
[313357065,1707227449733,-290.268281,0.00041096,14]
[313357066,1707227449743,-290.268281,0.00041096,14]
[313357067,1707227449753,-290.268281,0.00041096,14]
[313357068,1707227449763,-290.268281,0.00041096,14]
[313357069,1707227449773,-290.268281,0.00041096,14]
[313357070,1707227449783,-290.268281,0.00041096,14]
[313357071,1707227449795,-290.268281,0.00041096,14]
[313357072,1707227449805,-290.268281,0.00041096,14]
[313357073,1707227449815,-290.268281,0.00041096,14]
[313357074,1707227449824,-290.268281,0.00041096,14]
[313357075,1707227449834,-290.268281,0.00041096,14]
[313357076,1707227449844,-290.268281,0.00041096,14]
[313357077,1707227449854,-290.268287,0.00041096,14]
[313357078,1707227449868,-161.343318,0.00041096,14]
[313357079,1707227449877,-161.343318,0.00041096,14]
[313357080,1707227449887,-161.343318,0.00041096,14]
[313357081,1707227449897,-161.343318,0.00041096,14]
[313357082,1707227449907,-161.343318,0.00041096,14]
[313357083,1707227449917,-161.343318,0.00041096,14]
[313357084,1707227449927,-161.343318,0.00041096,14]
[313357085,1707227450011,-161.343318,0.00041096,14]
[313357086,1707227450021,-161.343318,0.00041096,14]
[313357087,1707227450032,-161.343318,0.00041096,14]
[313357088,1707227450043,-161.343318,0.00041096,14]
[313357089,1707227450052,-161.343318,0.00041096,14]
[313357090,1707227450063,-161.343318,0.00041096,14]
[313357091,1707227450073,-161.343318,0.00041096,14]
[313357092,1707227450083,-161.343318,0.00041096,14]
[313357093,1707227450093,-161.343318,0.00041096,14]
[313357094,1707227450104,-161.343318,0.00041096,14]
[313357095,1707227450113,-161.343318,0.00041096,14]
[313357096,1707227450123,-161.343318,0.00041096,14]
[313357097,1707227450134,-161.34332,0.00041096,14]
[313357098,1707227450144,-151.0,0.00041096,14]
[313357099,1707227450154,-151.0,0.00041096,14]
[313357100,1707227450164,-151.0,0.00041096,14]
[313357101,1707227450174,-151.0,0.00041096,14]
[313357102,1707227450184,-151.0,0.00041096,14]
[313357103,1707227450195,-151.0,0.00041096,14]
[313357104,1707227450206,-151.0,0.00041096,14]
[313357105,1707227450216,-151.0,0.00041096,14]
[313357106,1707227450226,-233.841444,0.00041096,14]
[313357107,1707227450236,-200.473467,0.00041096,14]
[313357108,1707227450246,-170.968706,0.00041096,14]
[313357109,1707227450257,-151.0,0.00041096,14]
[313357110,1707227450267,-151.0,0.00041096,14]
[313357111,1707227450278,-151.0,0.00041096,14]
[313357112,1707227450287,-151.0,0.00041096,14]
[313357113,1707227450297,-151.0,0.00041096,14]
[313357114,1707227450307,-151.0,0.00041096,14]
[313357115,1707227450318,-151.0,0.00041096,2]
[313357116,1707227450329,-151.0,0.00041096,2]
[313357117,1707227450340,-151.0,0.00041096,2]
[313357118,1707227450350,-151.0,0.00041096,2]
[313357119,1707227450360,-151.0,0.00041096,2]
[313357120,1707227450370,-151.0,0.00041096,2]
[313357121,1707227450381,-151.0,0.00041096,2]
[313357122,1707227450390,-244.3771,0.00041096,2]
[313357123,1707227450400,-151.0,0.00041096,14]
[313357124,1707227450411,-158.841935,0.00041096,14]
[313357125,1707227450422,-151.0,0.00041096,14]
[313357126,1707227450433,-151.0,0.00041096,14]
[313357127,1707227450443,-151.0,0.00041096,14]
[313357128,1707227450454,-151.0,0.00041096,14]
[313357129,1707227450464,-225.493006,0.00041096,14]
[313357130,1707227450474,-186.944512,0.00041096,14]
[313357131,1707227450484,-151.0,0.00041096,14]
[313357132,1707227450494,-151.0,0.00041096,14]
[313357133,1707227450504,-151.0,0.00041096,14]
[313357134,1707227450514,-151.0,0.00041096,14]
[313357135,1707227450524,-151.0,0.00041096,14]
[313357136,1707227450535,-151.0,0.00041096,14]
[313357137,1707227450545,-151.0,0.00041096,14]
[313357138,1707227450556,-151.0,0.00041096,14]
[313357139,1707227450567,-151.0,0.00041096,14]
[313357140,1707227450578,-151.0,0.00041096,14]
[313357141,1707227450589,-151.0,0.00041096,14]
[313357142,1707227450599,-151.0,0.00041096,14]
[313357143,1707227450612,-151.0,0.00041096,14]
[313357144,1707227450622,-151.0,0.00041096,14]
[313357145,1707227450632,-151.0,0.00041096,14]
[313357146,1707227450642,-183.722174,0.00041096,14]
[313357147,1707227450652,-151.0,0.00041096,14]
[313357148,1707227450662,-155.461468,0.00041096,14]
[313357149,1707227450673,-151.0,0.00041096,14]
[313357150,1707227450682,-151.0,0.00041096,14]
[313357151,1707227450692,-151.0,0.00041096,14]
[313357152,1707227450703,-151.0,0.00041096,14]
[313357153,1707227450713,-151.0,0.00041096,14]
[313357154,1707227450724,-151.0,0.00041096,14]
[313357155,1707227450733,-151.0,0.00041096,14]
[313357156,1707227450743,-151.0,0.00041096,14]
[313357157,1707227450752,-169.815642,0.00041096,14]
[313357158,1707227450763,-172.834124,0.00041096,14]
[313357159,1707227450774,-294.842146,0.00041096,14]
[313357160,1707227450784,-294.842146,0.00041096,14]
[313357161,1707227450793,-294.842146,0.00041096,14]
[313357162,1707227450803,-294.842146,0.00041096,14]
[313357163,1707227450812,-294.842146,0.00041096,14]
[313357164,1707227450822,-294.842146,0.00041096,14]
[313357165,1707227450831,-294.842146,0.00041096,14]
[313357166,1707227450841,-294.842146,0.00041096,14]
[313357167,1707227450854,-294.842146,0.00041096,14]
[313357168,1707227450864,-294.842146,0.00041096,14]
[313357169,1707227450875,-294.842146,0.00041096,14]
[313357170,1707227450885,-294.842146,0.00041096,14]
[313357171,1707227450896,-294.842146,0.00041096,14]
[313357172,1707227450906,-294.842146,0.00041096,14]
[313357173,1707227450916,-294.842146,0.00041096,14]
[313357174,1707227450926,-294.842146,0.00041096,14]
[313357175,1707227450936,-294.842146,0.00041096,14]
[313357176,1707227450946,-294.842146,0.00041096,14]
[313357177,1707227450958,-294.842146,0.00041096,14]
[313357178,1707227450970,-294.842146,0.00041096,14]
[313357179,1707227450981,-151.0,0.00041096,14]
[313357180,1707227450992,-151.0,0.00041096,14]
[313357181,1707227451002,-151.0,0.00041096,14]
[313357182,1707227451014,-151.0,0.00041096,14]
[313357183,1707227451024,-151.0,0.00041096,14]
[313357184,1707227451034,-151.0,0.00041096,14]
[313357185,1707227451043,-151.0,0.00041096,14]
[313357186,1707227451052,-151.0,0.00041096,14]
[313357187,1707227451062,-151.0,0.00041096,14]
[313357188,1707227451072,-151.0,0.00041096,14]
[313357189,1707227451082,-151.0,0.00041096,14]
[313357190,1707227451093,-151.0,0.00041096,14]
[313357191,1707227451103,-151.0,0.00041096,14]
[313357192,1707227451115,-151.0,0.00041096,14]
[313357193,1707227451126,-151.0,0.00041096,14]
[313357194,1707227451135,-151.0,0.00041096,14]
[313357195,1707227451144,-151.0,0.00041096,14]
[313357196,1707227451154,-281.682896,0.00041096,14]
[313357197,1707227451163,-151.0,0.00041096,14]
[313357198,1707227451172,-151.0,0.00041096,14]
[313357199,1707227451181,-151.0,0.00041096,14]
[313357200,1707227451191,-151.0,0.00041096,14]
[313357201,1707227451200,-151.0,0.00041096,14]
[313357202,1707227451210,-151.0,0.00041096,14]
[313357203,1707227451219,-151.0,0.00041096,14]
[313357204,1707227451228,-151.0,0.00041096,14]
[313357205,1707227451238,-151.0,0.00041096,14]
[313357206,1707227451246,-151.0,0.00041096,14]
[313357207,1707227451257,-151.0,0.00041096,14]
[313357208,1707227451266,-173.682946,0.00041096,14]
[313357209,1707227451275,-151.0,0.00041096,14]
[313357210,1707227451284,-151.0,0.00041096,14]
[313357211,1707227451293,-151.0,0.00041096,14]
[313357212,1707227451303,-151.0,0.00041096,14]
[313357213,1707227451313,-151.0,0.00041096,14]
[313357214,1707227451322,-151.0,0.00041096,14]
[313357215,1707227451332,-151.0,0.00041096,14]
[313357216,1707227451341,-151.0,0.00041096,14]
[313357217,1707227451423,-151.0,0.00041096,14]
[313357218,1707227451432,-151.0,0.00041096,14]
[313357219,1707227451441,-151.0,0.00041096,14]
[313357220,1707227451452,-151.0,0.00041096,14]
[313357221,1707227451461,-151.0,0.00041096,14]
[313357222,1707227451471,-151.0,0.00041096,14]
[313357223,1707227451480,-161.695652,0.00041096,14]
[313357224,1707227451489,-183.0,0.00041096,2]
[313357225,1707227451498,-275.391815,0.00041096,14]
[313357226,1707227451509,-275.391815,0.00041096,14]